[Event "Turkish Super League 2019"]
[Site "Konya"]
[Date "2019.07.20"]
[Round "4"]
[White "Atakisi, Umut"]
[Black "Cansun, Can Alp"]
[Result "1/2-1/2"]
[ECO "A37"]
[WhiteElo "2401"]
[BlackElo "2121"]
[Annotator "NA"]
[PlyCount "148"]
[EventDate "2019.07.17"]
[EventType "team-tourn"]
[EventCountry "TUR"]
[SourceTitle "playchess.com"]
[Source "ChessBase"]
[SourceQuality "1"]
[TimeControl "40/5400+30:1800+30"]

1. Nf3 c5 2. c4 Nc6 3. g3 g6 4. Bg2 Bg7 5. O-O e6 6. Nc3 Nge7 7. d4 cxd4 8. Nb5 d5 9. cxd5 Nxd5 10. Nfxd4 Nxd4 11. Nxd4 O-O 12. Nc2 Nb6 13. Ne3 Qe7 14. a4 Rd8 15. Qb3 e5 16. a5 Be6 17. Qa3 Qxa3 18. Rxa3 Nd5 19. Rd3 Nb4 20. Rxd8+ Rxd8 21. Bxb7 Bb3 {[%emt 0:58:30]} 22. Ng2 {[%emt 1:21:07]} Rd7 {[%emt 0:18:30]} 23. a6 {[%emt 0:04:05]} Bc4 {[%emt 0:00:30]} 24. Be3 {[%emt 0:00:43]} Nxa6 {[%emt 0:02:30]} 25. Rc1 {[%emt 0:04:34]} Rxb7 {[%emt 0:02:36]} 26. Rxc4 {[%emt 0:00:02]} h6 {[%emt 0:00:24]} 27. Bc1 {[%emt 0:02:41]} Nb4 {[%emt 0:07:27]} 28. Bd2 {[%emt 0:04:58]} Nd5 {[%emt 0:01:22]} 29. b4 {[%emt 0:00:29]} Bf8 {[%emt 0:05:42]} 30. Rc8 {[%emt 0:01:00]} Kg7 {[%emt 0:00:38]} 31. Bxh6+ {[%emt 0:01:14]} Kxh6 {[%emt 0:00:30]} 32. Rxf8 {[%emt 0:00:00]} a5 {[%emt 0:02:27]} 33. b5 {[%emt 0:00:02]} Rxb5 {[%emt 0:01:03]} 34. f4 {[%emt 0:01:47]} Kg7 {[%emt 0:01:18]} 35. Ra8 {[%emt 0:00:49]} Nc3 {[%emt 0:00:38]} 36. Kf2 {[%emt 0:03:38]} e4 {[%emt 0:01:34]} 37. Rc8 {[%emt 0:00:43]} Rb3 {[%emt 0:00:30]} 38. Ne3 {[%emt 0:00:17]} a4 {[%emt 0:00:34]} 39. Nc4 {[%emt 0:00:30]} Nd5 {[%emt 0:02:14]} 40. Rc5 {[%emt 0:00:00]} Nf6 {[%emt 0:00:00]} 41. Ne5 {[%emt 0:02:51]} Ne8 {[%emt 0:06:33]} 42. Ra5 {[%emt 0:08:30]} Rb4 {[%emt 0:02:30]} 43. Ra7 {[%emt 0:01:30]} Nd6 {[%emt 0:00:00]} 44. Rd7 {[%emt 0:02:53]} Rb6 {[%emt 0:01:00]} 45. Ra7 {[%emt 0:00:11]} Rb4 {[%emt 0:00:00]} 46. g4 {[%emt 0:02:51]} g5 {[%emt 0:04:00]} 47. Rd7 {[%emt 0:03:25]} Rb6 {[%emt 0:01:12]} 48. Ra7 {[%emt 0:04:15]} gxf4 {[%emt 0:00:48]} 49. Rxa4 {[%emt 0:00:08]} Rb2 {[%emt 0:05:30]} 50. Nc4 {[%emt 0:01:01]} Nxc4 {[%emt 0:01:40]} 51. Rxc4 {[%emt 0:00:01]} f3 {[%emt 0:01:19]} 52. Rxe4 {[%emt 0:00:07]} fxe2 {[%emt 0:00:22]} 53. Rxe2 {[%emt 0:00:17]} Rb4 {[%emt 0:00:45]} 54. Kg3 {[%emt 0:00:47]} Rb3+ {[%emt 0:00:55]} 55. Kh4 {[%emt 0:00:30]} Rb4 {[%emt 0:03:52]} 56. Re5 {[%emt 0:00:15]} Kg6 {[%emt 0:00:43]} 57. Rg5+ {[%emt 0:00:22]} Kh6 {[%emt 0:00:21]} 58. h3 {[%emt 0:02:45]} Ra4 {[%emt 0:00:34]} 59. Rf5 {[%emt 0:01:01]} Kg6 {[%emt 0:00:30]} 60. Kg3 {[%emt 0:00:00]} Ra3+ {[%emt 0:00:24]} 61. Rf3 {[%emt 0:00:00]} Rxf3+ {[%emt 0:00:44]} 62. Kxf3 {[%emt 0:00:00]} f5 {[%emt 0:00:28]} 63. Kf4 {[%emt 0:00:08]} fxg4 {[%emt 0:00:30]} 64. hxg4 {[%emt 0:00:30]} Kf6 {[%emt 0:00:30]} 65. g5+ {[%emt 0:00:30]} Kg6 {[%emt 0:00:30]} 66. Kg4 {[%emt 0:00:00]} Kg7 {[%emt 0:00:00]} 67. Kf5 {[%emt 0:00:00]} Kf7 {[%emt 0:00:00]} 68. g6+ {[%emt 0:00:00]} Kg7 {[%emt 0:00:00]} 69. Kg5 {[%emt 0:00:13]} Kg8 {[%emt 0:00:00]} 70. Kf4 {[%emt 0:00:30]} Kg7 {[%emt 0:00:00]} 71. Kf5 {[%emt 0:00:00]} Kg8 {[%emt 0:00:00]} 72. Kf6 {[%emt 0:00:00]} Kf8 {[%emt 0:00:00]} 73. g7+ {[%emt 0:00:00]} Kg8 {[%emt 0:00:00]} 74. Ke7 {[%emt 0:00:04]} Kxg7 {[%emt 0:00:00]} 1/2-1/2

[Event "Turkish Super League 2019"]
[Site "Konya"]
[Date "2019.07.20"]
[Round "4"]
[White "Ertan, Can"]
[Black "Injac, Teodora"]
[Result "1-0"]
[ECO "B86"]
[WhiteElo "2396"]
[BlackElo "2305"]
[Annotator "NA"]
[PlyCount "137"]
[EventDate "2019.07.17"]
[EventType "team-tourn"]
[EventCountry "TUR"]
[SourceTitle "playchess.com"]
[Source "ChessBase"]
[SourceQuality "1"]
[TimeControl "40/5400+30:1800+30"]

1. e4 c5 2. Nf3 d6 3. d4 cxd4 4. Nxd4 Nf6 5. Nc3 a6 6. Bc4 e6 7. Bb3 Nbd7 8. O-O Nc5 9. Qe2 Be7 10. f4 O-O 11. Nf3 b5 12. e5 Nfd7 13. exd6 Bxd6 14. Ne4 Be7 15. c4 Nxb3 16. axb3 Bb7 17. Bd2 Bxe4 18. Qxe4 Nc5 19. Qe3 Qd3 20. cxb5 axb5 21. Rac1 {[%emt 1:09:30]} Qxe3+ {[%emt 1:19:30]} 22. Bxe3 {[%emt 0:00:30]} Rfc8 {[%emt 0:07:29]} 23. Nd4 {[%emt 0:00:30]} Bf6 {[%emt 0:07:38]} 24. Rfd1 {[%emt 0:00:30]} h6 {[%emt 0:04:29]} 25. Kf2 {[%emt 0:10:30]} Bxd4 {[%emt 0:01:57]} 26. Rxd4 {[%emt 0:00:30]} Nxb3 {[%emt 0:00:04]} 27. Rxc8+ {[%emt 0:00:30]} Rxc8 {[%emt 0:00:02]} 28. Rb4 {[%emt 0:00:00]} Rc2+ {[%emt 0:00:48]} 29. Kg3 {[%emt 0:00:00]} Rxb2 {[%emt 0:00:44]} 30. Rxb5 {[%emt 0:00:00]} Rb1 {[%emt 0:00:21]} 31. Rb4 {[%emt 0:00:00]} Kh7 {[%emt 0:01:15]} 32. Kf3 {[%emt 0:02:30]} Rf1+ {[%emt 0:00:51]} 33. Ke2 {[%emt 0:00:30]} Rb1 {[%emt 0:00:02]} 34. Rb6 {[%emt 0:01:30]} Nc1+ {[%emt 0:01:00]} 35. Kd2 {[%emt 0:00:30]} Rxb6 {[%emt 0:00:27]} 36. Bxb6 {[%emt 0:00:00]} Na2 {[%emt 0:00:28]} 37. Ba5 {[%emt 0:01:00]} Kg6 {[%emt 0:00:39]} 38. Kc2 {[%emt 0:04:48]} Kf5 {[%emt 0:00:02]} 39. Bd2 {[%emt 0:00:00]} Ke4 {[%emt 0:00:57]} 40. Kb2 {[%emt 0:00:00]} Kd3 {[%emt 0:00:00]} 41. Ba5 {[%emt 0:00:12]} Ke3 {[%emt 0:10:47]} 42. Kxa2 {[%emt 0:14:30]} Kxf4 {[%emt 0:03:40]} 43. Bc3 {[%emt 0:00:30]} f6 {[%emt 0:04:33]} 44. Bd4 {[%emt 0:03:30]} Ke4 {[%emt 0:06:12]} 45. Bc5 {[%emt 0:01:30]} g5 {[%emt 0:03:34]} 46. Kb2 {[%emt 0:05:30]} Kd3 {[%emt 0:00:19]} 47. Bf8 {[%emt 0:00:00]} Ke2 {[%emt 0:05:06]} 48. Bxh6 {[%emt 0:00:00]} Kf2 {[%emt 0:00:41]} 49. g3 {[%emt 0:00:30]} g4 {[%emt 0:00:20]} 50. Bg7 {[%emt 0:00:30]} f5 {[%emt 0:00:29]} 51. Kc3 {[%emt 0:01:30]} Ke3 {[%emt 0:00:03]} 52. Bh6+ {[%emt 0:00:30]} Ke4 {[%emt 0:00:10]} 53. Kd2 {[%emt 0:00:30]} e5 {[%emt 0:00:41]} 54. Ke2 {[%emt 0:01:30]} Kd4 {[%emt 0:00:26]} 55. Bc1 {[%emt 0:00:30]} Ke4 {[%emt 0:00:09]} 56. Kf2 {[%emt 0:06:06]} Kd3 {[%emt 0:00:14]} 57. Bb2 {[%emt 0:00:32]} Ke4 {[%emt 0:01:18]} 58. Ke2 {[%emt 0:00:05]} Kd5 {[%emt 0:00:30]} 59. Kd3 {[%emt 0:01:04]} Ke6 {[%emt 0:00:58]} 60. Bc1 {[%emt 0:00:11]} Kd5 {[%emt 0:00:18]} 61. Be3 {[%emt 0:00:17]} Kc6 {[%emt 0:00:42]} 62. Kc4 {[%emt 0:01:32]} Kd6 {[%emt 0:00:02]} 63. Bc1 {[%emt 0:00:00]} Kc6 {[%emt 0:00:51]} 64. Ba3 {[%emt 0:00:06]} f4 {[%emt 0:01:04]} 65. Bc1 {[%emt 0:00:04]} f3 {[%emt 0:00:05]} 66. Be3 {[%emt 0:00:40]} Kd6 {[%emt 0:00:04]} 67. Bf2 {[%emt 0:00:18]} Kc6 {[%emt 0:00:10]} 68. Bc5 {[%emt 0:00:10]} e4 {[%emt 0:00:50]} 69. Be3 {[%emt 0:00:08]} 1-0

[Event "Turkish Super League 2019"]
[Site "Konya"]
[Date "2019.07.20"]
[Round "4"]
[White "Gulbas, Cemil"]
[Black "Rozum, Ivan"]
[Result "1-0"]
[ECO "B07"]
[WhiteElo "2380"]
[BlackElo "2583"]
[Annotator "ChessBase"]
[PlyCount "63"]
[EventDate "2019.07.17"]
[EventType "team-tourn"]
[EventCountry "TUR"]
[SourceTitle "playchess.com"]
[Source "ChessBase"]
[SourceQuality "1"]
[TimeControl "40/5400+30:1800+30"]

1. e4 d6 2. d4 Nf6 3. Nc3 e5 4. Nge2 Nbd7 5. f3 Be7 6. Be3 O-O 7. Qd2 c6 8. g4 exd4 9. Nxd4 Ne5 10. Qg2 d5 11. g5 Nh5 12. O-O-O Ng6 13. Nde2 Nh4 14. Qf2 Bxg5 15. f4 Bh6 16. Nxd5 cxd5 17. Rxd5 Qe7 18. Rxh5 Ng6 19. Nc3 f5 20. Bc4+ Be6 21. Nd5 {[%emt 1:11:30]} Qd7 {[%emt 1:09:30]} 22. Rd1 {[%emt 0:09:32]} Qc6 {[%emt 0:05:30]} 23. Bb3 {[%emt 0:00:28]} Kh8 {[%emt 0:06:41]} 24. Qg3 {[%emt 0:05:07]} Rae8 {[%emt 0:04:12]} 25. h4 {[%emt 0:02:37]} fxe4 {[%emt 0:12:06]} 26. Rxh6 {[%emt 0:00:31]} gxh6 {[%emt 0:00:23]} 27. h5 {[%emt 0:00:16]} Ne5 {[%emt 0:00:22]} 28. Bd4 {[%emt 0:10:53]} Bxd5 {[%emt 0:00:43]} 29. Rg1 {[%emt 0:00:14]} Qf6 {[%emt 0:04:27]} 30. fxe5 {[%emt 0:01:04]} Qg5+ {[%emt 0:00:33]} 31. Qxg5 {[%emt 0:00:37]} hxg5 {[%emt 0:00:01]} 32. e6+ {[%emt 0:00:00]} 1-0

[Event "Turkish Super League 2019"]
[Site "Konya"]
[Date "2019.07.20"]
[Round "4"]
[White "Buksa, Nataliya"]
[Black "Dordzhieva, Dinara"]
[Result "1-0"]
[ECO "B09"]
[WhiteElo "2379"]
[BlackElo "2306"]
[Annotator "NA"]
[PlyCount "99"]
[EventDate "2019.07.17"]
[EventType "team-tourn"]
[EventCountry "TUR"]
[SourceTitle "playchess.com"]
[Source "ChessBase"]
[SourceQuality "1"]
[TimeControl "40/5400+30:1800+30"]

1. e4 g6 2. d4 Bg7 3. Nc3 d6 4. f4 Nf6 5. Nf3 O-O 6. e5 dxe5 7. fxe5 Nd5 8. Bc4 Nxc3 9. bxc3 c5 10. O-O Bg4 11. Be3 Nc6 12. Qd2 Na5 13. Bd3 Qd5 14. Bh6 cxd4 15. Bxg7 Kxg7 16. Qf4 Bxf3 17. Rxf3 Nc6 18. Rh3 h5 19. Rxh5 Rh8 20. Be4 Qc5 {[%emt 1:10:00]} 21. Rg5 {[%emt 1:10:30]} dxc3+ {[%emt 0:17:30]} 22. Kh1 {[%emt 0:00:00]} Nd8 {[%emt 0:00:02]} 23. Rf1 {[%emt 0:04:00]} Qc4 {[%emt 0:00:40]} 24. Rf3 {[%emt 0:02:30]} Rc8 {[%emt 0:02:58]} 25. h4 {[%emt 0:17:00]} Qe2 {[%emt 0:03:39]} 26. Kh2 {[%emt 0:01:49]} Rc4 {[%emt 0:03:59]} 27. Rg4 {[%emt 0:03:06]} Qe1 {[%emt 0:01:10]} 28. e6 {[%emt 0:02:35]} Rxe4 {[%emt 0:03:20]} 29. Qxe4 {[%emt 0:00:18]} Qxe4 {[%emt 0:00:26]} 30. Rxe4 {[%emt 0:00:32]} Nxe6 {[%emt 0:00:18]} 31. Rxc3 {[%emt 0:00:10]} Rd8 {[%emt 0:00:12]} 32. Rd3 {[%emt 0:01:18]} Rc8 {[%emt 0:00:04]} 33. Rd7 {[%emt 0:00:55]} Rxc2 {[%emt 0:01:15]} 34. Rxe7 {[%emt 0:00:13]} Kf6 {[%emt 0:00:47]} 35. Rxb7 {[%emt 0:00:03]} Rxa2 {[%emt 0:00:00]} 36. Re3 {[%emt 0:00:40]} Nd4 {[%emt 0:00:43]} 37. Ree7 {[%emt 0:01:28]} Nf3+ {[%emt 0:00:30]} 38. Kg3 {[%emt 0:00:30]} Ne5 {[%emt 0:00:30]} 39. Rxa7 {[%emt 0:00:00]} Rd2 {[%emt 0:00:00]} 40. Kh3 {[%emt 0:00:00]} Rd3+ {[%emt 0:00:00]} 41. g3 {[%emt 0:04:53]} Rd2 {[%emt 0:03:27]} 42. Re8 {[%emt 0:01:30]} Rd5 {[%emt 0:05:30]} 43. Ra4 {[%emt 0:04:30]} Nd3 {[%emt 0:01:30]} 44. g4 {[%emt 0:03:30]} Ne5 {[%emt 0:03:30]} 45. Ra6+ {[%emt 0:01:18]} Kg7 {[%emt 0:00:30]} 46. g5 {[%emt 0:00:00]} Rd3+ {[%emt 0:04:20]} 47. Kg2 {[%emt 0:00:12]} Rd2+ {[%emt 0:00:00]} 48. Kg3 {[%emt 0:00:43]} Rd3+ {[%emt 0:04:13]} 49. Kf4 {[%emt 0:00:40]} Nd7 {[%emt 0:01:35]} 50. Raa8 {[%emt 0:00:30]} 1-0

[Event "Turkish Super League 2019"]
[Site "Konya"]
[Date "2019.07.20"]
[Round "4"]
[White "Arat, Ufuk Sezen"]
[Black "Kerigan, Demre"]
[Result "1/2-1/2"]
[ECO "E69"]
[WhiteElo "2376"]
[BlackElo "2398"]
[Annotator "NA"]
[PlyCount "87"]
[EventDate "2019.07.17"]
[EventType "team-tourn"]
[EventCountry "TUR"]
[SourceTitle "playchess.com"]
[Source "ChessBase"]
[SourceQuality "1"]
[TimeControl "40/5400+30:1800+30"]

1. d4 g6 2. c4 Nf6 3. g3 Bg7 4. Bg2 O-O 5. Nc3 d6 6. Nf3 Nbd7 7. O-O e5 8. e4 c6 9. h3 Qa5 10. Re1 exd4 11. Nxd4 Ne5 12. Bf1 Qb6 13. Be3 c5 14. Nc2 Be6 15. b3 Rad8 16. Bg2 h6 17. f4 Nc6 18. Qd3 Qa5 19. Bd2 Nb4 20. Nxb4 cxb4 {[%emt 1:07:00]} 21. Nb5 {[%emt 1:11:30]} Nd7 {[%emt 0:00:30]} 22. Rab1 {[%emt 0:04:30]} Nc5 {[%emt 0:04:30]} 23. Qe3 {[%emt 0:00:30]} a6 {[%emt 0:00:30]} 24. Nd4 {[%emt 0:00:00]} Rfe8 {[%emt 0:03:30]} 25. Nc2 {[%emt 0:04:00]} Nxe4 {[%emt 0:17:13]} 26. Qxe4 {[%emt 0:09:38]} Bf5 {[%emt 0:01:01]} 27. Qxb7 {[%emt 0:03:38]} Bxc2 {[%emt 0:01:06]} 28. Bd5 {[%emt 0:01:02]} Rf8 {[%emt 0:02:48]} 29. Rbc1 {[%emt 0:01:26]} Qxa2 {[%emt 0:00:50]} 30. Qxb4 {[%emt 0:03:21]} Rb8 {[%emt 0:01:07]} 31. Qxd6 {[%emt 0:02:09]} Rxb3 {[%emt 0:01:02]} 32. Re3 {[%emt 0:00:59]} Rxe3 {[%emt 0:03:01]} 33. Bxe3 {[%emt 0:00:04]} Bf5 {[%emt 0:00:01]} 34. g4 {[%emt 0:01:04]} Qb3 {[%emt 0:01:10]} 35. Qb6 {[%emt 0:00:06]} Qxb6 {[%emt 0:01:47]} 36. Bxb6 {[%emt 0:00:30]} Bd7 {[%emt 0:00:30]} 37. Rd1 {[%emt 0:01:31]} Ba4 {[%emt 0:00:13]} 38. Rd2 {[%emt 0:00:08]} Rc8 {[%emt 0:00:37]} 39. c5 {[%emt 0:00:48]} Bf8 {[%emt 0:00:28]} 40. Bb7 {[%emt 0:00:00]} Bxc5+ {[%emt 0:00:00]} 41. Kh2 {[%emt 0:05:36]} Bb4 {[%emt 0:05:36]} 42. Ra2 {[%emt 0:04:30]} Rc2+ {[%emt 0:00:30]} 43. Rxc2 {[%emt 0:00:00]} Bxc2 {[%emt 0:00:30]} 44. Bxa6 {[%emt 0:00:00]} 1/2-1/2

[Event "Turkish Super League 2019"]
[Site "Konya"]
[Date "2019.07.20"]
[Round "4"]
[White "Can, Isik"]
[Black "Ali Marandi, Cemil Can"]
[Result "1/2-1/2"]
[ECO "B32"]
[WhiteElo "2374"]
[BlackElo "2527"]
[Annotator "ChessBase"]
[PlyCount "111"]
[EventDate "2019.07.17"]
[EventType "team-tourn"]
[EventCountry "TUR"]
[SourceTitle "playchess.com"]
[Source "ChessBase"]
[SourceQuality "1"]
[TimeControl "40/5400+30:1800+30"]

1. e4 c5 2. Nf3 Nc6 3. d4 cxd4 4. Nxd4 e5 5. Nb5 d6 6. c4 Be7 7. N1c3 a6 8. Na3 f5 9. exf5 Bxf5 10. Bd3 Be6 11. O-O Nf6 12. Nc2 O-O 13. Nd5 e4 14. Nxf6+ Bxf6 15. Bxe4 Bxc4 16. Bd5+ Bxd5 17. Qxd5+ Kh8 18. Be3 Bxb2 19. Rab1 Be5 20. Rxb7 Rc8 21. g3 Qf6 22. Rb6 Ne7 23. Qe4 Nf5 24. Rc6 Rb8 {[%emt 1:09:00]} 25. Rxa6 {[%emt 1:11:30]} Qg6 {[%emt 0:00:30]} 26. Ra4 {[%emt 0:05:30]} Rbe8 {[%emt 0:02:30]} 27. Qg4 {[%emt 0:00:30]} Qf7 {[%emt 0:00:30]} 28. Bf4 {[%emt 0:01:30]} Rc8 {[%emt 0:01:30]} 29. Ne3 {[%emt 0:04:30]} Nd4 {[%emt 0:00:30]} 30. Qd1 {[%emt 0:01:30]} Rc1 {[%emt 0:01:30]} 31. Qxc1 {[%emt 0:03:58]} Ne2+ {[%emt 0:00:30]} 32. Kh1 {[%emt 0:00:00]} Qb7+ {[%emt 0:02:30]} 33. Ng2 {[%emt 0:00:18]} Nxc1 {[%emt 0:00:00]} 34. Rxc1 {[%emt 0:00:20]} Bxf4 {[%emt 0:01:00]} 35. Rxf4 {[%emt 0:01:12]} Rxf4 {[%emt 0:00:30]} 36. gxf4 {[%emt 0:00:30]} h5 {[%emt 0:00:30]} 37. Kg1 {[%emt 0:01:36]} Qe4 {[%emt 0:01:30]} 38. h4 {[%emt 0:01:54]} d5 {[%emt 0:00:30]} 39. Rd1 {[%emt 0:01:09]} d4 {[%emt 0:05:30]} 40. a4 {[%emt 0:00:00]} Qd5 {[%emt 0:00:00]} 41. Kh2 {[%emt 0:03:33]} Qc4 {[%emt 0:08:00]} 42. a5 {[%emt 0:00:30]} d3 {[%emt 0:00:30]} 43. Kg3 {[%emt 0:00:30]} Kg8 {[%emt 0:02:30]} 44. Ne3 {[%emt 0:13:30]} Qb5 {[%emt 0:04:30]} 45. Ra1 {[%emt 0:03:30]} Qa6 {[%emt 0:01:30]} 46. Ra4 {[%emt 0:06:03]} Kf7 {[%emt 0:05:30]} 47. Rd4 {[%emt 0:00:50]} Qf6 {[%emt 0:08:30]} 48. Rd5 {[%emt 0:01:16]} Qg6+ {[%emt 0:00:30]} 49. Rg5 {[%emt 0:00:27]} Qc6 {[%emt 0:05:15]} 50. Rd5 {[%emt 0:00:13]} Qg6+ {[%emt 0:01:40]} 51. Rg5 {[%emt 0:00:02]} Qd6 {[%emt 0:00:32]} 52. Rd5 {[%emt 0:00:28]} Qc6 {[%emt 0:01:46]} 53. Kh2 {[%emt 0:01:59]} Qa4 {[%emt 0:01:46]} 54. Kg3 {[%emt 0:00:45]} Qc6 {[%emt 0:01:50]} 55. Kh2 {[%emt 0:00:30]} Qa4 {[%emt 0:00:30]} 56. Kg3 {[%emt 0:00:00]} 1/2-1/2

[Event "Turkish Super League 2019"]
[Site "Konya"]
[Date "2019.07.20"]
[Round "4"]
[White "Ozer, Omer Faruk"]
[Black "Lobanov, Sergei"]
[Result "0-1"]
[ECO "B12"]
[WhiteElo "2369"]
[BlackElo "2505"]
[Annotator "ChessBase"]
[PlyCount "191"]
[EventDate "2019.07.17"]
[EventType "team-tourn"]
[EventCountry "TUR"]
[SourceTitle "playchess.com"]
[Source "ChessBase"]
[SourceQuality "1"]
[TimeControl "40/5400+30:1800+30"]

1. e4 c6 2. d4 d5 3. e5 Bf5 4. Nf3 e6 5. Be2 Nd7 6. O-O h6 7. Nbd2 Ne7 8. Nb3 Bh7 9. a4 Nc8 10. a5 a6 11. Ne1 Be7 12. Be3 O-O 13. Bd3 c5 14. Bxh7+ Kxh7 15. c3 c4 16. Nd2 Na7 17. f4 g6 18. Kh1 Nc6 19. b4 cxb3 20. Nxb3 Rc8 21. Rf3 Na7 22. Bd2 f5 23. Rh3 Nb5 24. Nc2 Qe8 25. Qf3 Qf7 26. Nc1 Kg7 27. Ne2 {[%emt 1:18:30]} h5 {[%emt 1:01:30]} 28. Be1 {[%emt 0:08:03]} Rc6 {[%emt 0:02:30]} 29. Ne3 {[%emt 0:00:33]} Rfc8 {[%emt 0:00:30]} 30. Rb1 {[%emt 0:05:02]} Bd8 {[%emt 0:04:30]} 31. Ra1 {[%emt 0:00:09]} Nf8 {[%emt 0:00:30]} 32. Rd1 {[%emt 0:01:34]} Qe8 {[%emt 0:07:30]} 33. Ra1 {[%emt 0:00:30]} Qd7 {[%emt 0:00:00]} 34. Qg3 {[%emt 0:01:50]} Kf7 {[%emt 0:03:00]} 35. Qf3 {[%emt 0:00:13]} Be7 {[%emt 0:01:30]} 36. Nc2 {[%emt 0:03:04]} R6c7 {[%emt 0:02:30]} 37. Qd3 {[%emt 0:04:13]} Qc6 {[%emt 0:00:30]} 38. Qd1 {[%emt 0:00:00]} Ke8 {[%emt 0:05:53]} 39. Rd3 {[%emt 0:00:17]} Rd8 {[%emt 0:00:12]} 40. Kg1 {[%emt 0:00:00]} Kd7 {[%emt 0:00:00]} 41. h4 {[%emt 0:08:32]} Kc8 {[%emt 0:05:55]} 42. g3 {[%emt 0:00:30]} Kb8 {[%emt 0:00:00]} 43. Kh2 {[%emt 0:00:00]} Rdc8 {[%emt 0:00:00]} 44. Kg1 {[%emt 0:00:00]} Ka8 {[%emt 0:00:30]} 45. Qb1 {[%emt 0:01:30]} Nd7 {[%emt 0:01:30]} 46. Qd1 {[%emt 0:01:30]} Nb8 {[%emt 0:00:30]} 47. Kh2 {[%emt 0:01:30]} Qe8 {[%emt 0:00:00]} 48. Ra2 {[%emt 0:01:30]} Nc6 {[%emt 0:07:00]} 49. Qa1 {[%emt 0:01:30]} Bf8 {[%emt 0:00:30]} 50. Ne3 {[%emt 0:00:30]} Ne7 {[%emt 0:00:30]} 51. Kg1 {[%emt 0:02:30]} Ng8 {[%emt 0:00:00]} 52. Nd1 {[%emt 0:02:30]} Rc6 {[%emt 0:03:00]} 53. Nb2 {[%emt 0:01:03]} R8c7 {[%emt 0:00:30]} 54. Na4 {[%emt 0:01:20]} Ne7 {[%emt 0:00:30]} 55. Kh2 {[%emt 0:00:15]} Nc8 {[%emt 0:00:30]} 56. Kg1 {[%emt 0:00:30]} Be7 {[%emt 0:00:00]} 57. Nb2 {[%emt 0:00:00]} Qf8 {[%emt 0:00:00]} 58. Rf3 {[%emt 0:03:47]} Na3 {[%emt 0:00:30]} 59. Qd1 {[%emt 0:00:05]} Na7 {[%emt 0:00:00]} 60. Kh2 {[%emt 0:03:06]} N7b5 {[%emt 0:00:00]} 61. Nd3 {[%emt 0:01:17]} Rc8 {[%emt 0:00:30]} 62. Bd2 {[%emt 0:01:54]} Qd8 {[%emt 0:00:30]} 63. Nb2 {[%emt 0:01:31]} Qf8 {[%emt 0:02:30]} 64. Be1 {[%emt 0:00:24]} Bd8 {[%emt 0:00:30]} 65. Qa4 {[%emt 0:01:43]} Kb8 {[%emt 0:01:30]} 66. Nd3 {[%emt 0:00:45]} Be7 {[%emt 0:02:30]} 67. Qb3 {[%emt 0:00:53]} Nc4 {[%emt 0:00:30]} 68. Bf2 {[%emt 0:00:20]} Bd8 {[%emt 0:04:30]} 69. Nc5 {[%emt 0:03:10]} Qf7 {[%emt 0:01:30]} 70. Qb4 {[%emt 0:00:16]} Qc7 {[%emt 0:00:30]} 71. Bg1 {[%emt 0:03:33]} Nxa5 {[%emt 0:01:30]} 72. Rf1 {[%emt 0:00:01]} Nc4 {[%emt 0:03:30]} 73. Rfa1 {[%emt 0:00:06]} Qe7 {[%emt 0:00:30]} 74. Qb3 {[%emt 0:02:45]} Rb6 {[%emt 0:06:32]} 75. Qc2 {[%emt 0:01:13]} Na7 {[%emt 0:01:18]} 76. Nc1 {[%emt 0:00:19]} a5 {[%emt 0:01:04]} 77. N1b3 {[%emt 0:00:19]} Rb5 {[%emt 0:00:08]} 78. Nd2 {[%emt 0:00:59]} Nxd2 {[%emt 0:00:45]} 79. Qxd2 {[%emt 0:00:30]} b6 {[%emt 0:00:30]} 80. Na4 {[%emt 0:00:53]} Qd7 {[%emt 0:00:20]} 81. Nb2 {[%emt 0:00:50]} Rb3 {[%emt 0:00:47]} 82. Nd1 {[%emt 0:00:19]} Qb5 {[%emt 0:00:59]} 83. Rc2 {[%emt 0:00:15]} Be7 {[%emt 0:00:47]} 84. Ne3 {[%emt 0:00:24]} a4 {[%emt 0:00:33]} 85. c4 {[%emt 0:01:23]} dxc4 {[%emt 0:00:30]} 86. d5 {[%emt 0:00:00]} Rd3 {[%emt 0:02:35]} 87. Qg2 {[%emt 0:00:00]} exd5 {[%emt 0:00:25]} 88. Rb2 {[%emt 0:00:00]} Rb3 {[%emt 0:00:28]} 89. Rd2 {[%emt 0:00:00]} c3 {[%emt 0:01:56]} 90. Rxd5 {[%emt 0:00:05]} Qc6 {[%emt 0:00:33]} 91. Kh3 {[%emt 0:00:46]} Rb2 {[%emt 0:00:12]} 92. Qf1 {[%emt 0:00:29]} Bc5 {[%emt 0:01:24]} 93. Qa6 {[%emt 0:02:19]} Bxe3 {[%emt 0:01:34]} 94. Rxa4 {[%emt 0:00:02]} Qxa4 {[%emt 0:00:06]} 95. Qxa4 {[%emt 0:00:50]} Bxg1 {[%emt 0:00:06]} 96. e6 {[%emt 0:00:37]} 0-1

[Event "Turkish Super League 2019"]
[Site "Konya"]
[Date "2019.07.20"]
[Round "4"]
[White "Tarlabasi, Emirhan"]
[Black "Tanriverdi, Enes"]
[Result "1/2-1/2"]
[ECO "A32"]
[WhiteElo "2352"]
[BlackElo "2374"]
[Annotator "NA"]
[PlyCount "75"]
[EventDate "2019.07.17"]
[EventType "team-tourn"]
[EventCountry "TUR"]
[SourceTitle "playchess.com"]
[Source "ChessBase"]
[SourceQuality "1"]
[TimeControl "40/5400+30:1800+30"]

1. d4 Nf6 2. c4 e6 3. Nc3 Bb4 4. Nf3 c5 5. Bd2 O-O 6. e3 cxd4 7. Nxd4 Nc6 8. a3 Bxc3 9. Bxc3 Ne4 10. Qc2 Nxc3 11. Qxc3 b6 12. Nxc6 dxc6 13. Be2 Ba6 14. O-O c5 15. Bf3 Rb8 16. Rfd1 Qc7 17. Rd3 Rfd8 18. Rad1 Kf8 19. b3 f6 20. Qc2 g6 21. h4 Rxd3 {[%emt 1:03:30]} 22. Qxd3 {[%emt 1:17:00]} Ke7 {[%emt 0:00:30]} 23. Bg4 {[%emt 0:00:30]} Bb7 {[%emt 0:00:30]} 24. h5 {[%emt 0:02:30]} Rg8 {[%emt 0:02:30]} 25. h6 {[%emt 0:07:37]} Bc6 {[%emt 0:02:30]} 26. a4 {[%emt 0:04:36]} a5 {[%emt 0:01:30]} 27. Rd2 {[%emt 0:05:18]} f5 {[%emt 0:01:30]} 28. Bf3 {[%emt 0:00:36]} Bxf3 {[%emt 0:00:30]} 29. gxf3 {[%emt 0:00:04]} Rd8 {[%emt 0:06:30]} 30. Qc3 {[%emt 0:01:39]} Rxd2 {[%emt 0:01:30]} 31. Qxd2 {[%emt 0:00:03]} Qe5 {[%emt 0:00:00]} 32. f4 {[%emt 0:00:58]} Qf6 {[%emt 0:00:00]} 33. Qe2 {[%emt 0:01:06]} Qf8 {[%emt 0:14:05]} 34. Qf3 {[%emt 0:00:32]} Qc8 {[%emt 0:00:07]} 35. Qd1 {[%emt 0:00:39]} Qh8 {[%emt 0:01:32]} 36. Qf3 {[%emt 0:00:17]} Qc8 {[%emt 0:01:26]} 37. Qd1 {[%emt 0:00:46]} Qf8 {[%emt 0:02:04]} 38. Qf3 {[%emt 0:00:27]} 1/2-1/2

[Event "Turkish Super League 2019"]
[Site "Konya"]
[Date "2019.07.20"]
[Round "4"]
[White "Savina, Anastasia"]
[Black "Ozturk, Kubra"]
[Result "1-0"]
[ECO "D31"]
[WhiteElo "2344"]
[BlackElo "2317"]
[Annotator "NA"]
[PlyCount "49"]
[EventDate "2019.07.17"]
[EventType "team-tourn"]
[EventCountry "TUR"]
[SourceTitle "playchess.com"]
[Source "ChessBase"]
[SourceQuality "1"]
[TimeControl "40/5400+30:1800+30"]

1. d4 d5 2. c4 e6 3. Nc3 Be7 4. cxd5 exd5 5. Bf4 c6 6. e3 Bf5 7. g4 Be6 8. h3 Nd7 9. Bd3 g5 10. Bg3 h5 11. gxh5 Ngf6 12. Be2 Qb6 13. a3 Ne4 14. Nxe4 dxe4 {[%emt 0:54:00]} 15. f3 {[%emt 1:26:01]} Nf6 {[%emt 0:11:30]} 16. Be5 {[%emt 0:02:30]} exf3 {[%emt 0:07:30]} 17. Bxf3 {[%emt 0:01:43]} Qxb2 {[%emt 0:04:30]} 18. Ne2 {[%emt 0:01:03]} O-O-O {[%emt 0:02:29]} 19. O-O {[%emt 0:05:33]} Rh6 {[%emt 0:03:21]} 20. Qa4 {[%emt 0:02:07]} Rd5 {[%emt 0:12:05]} 21. Qxa7 {[%emt 0:01:24]} Qb3 {[%emt 0:00:03]} 22. Rab1 {[%emt 0:00:26]} Qxe3+ {[%emt 0:00:15]} 23. Rf2 {[%emt 0:00:09]} Rxe5 {[%emt 0:04:26]} 24. Qa8+ {[%emt 0:00:26]} Kc7 {[%emt 0:00:50]} 25. Rxb7+ {[%emt 0:00:42]} 1-0